fUSD/lending_fUSD_20251110
["ID","MTS","AMOUNT","RATE_DAILY","PERIOD"]
[393566676,1762804777316,-300.0,0.0001664,2]
[393566677,1762804777413,-2500.0,0.00016657,2]
[393566678,1762804777442,-195.0,0.00016663,2]
[393566679,1762804777470,-1200.0,0.00016672,2]
[393566680,1762804777593,-1002.70838088,0.00016673,2]
[393566681,1762804777606,-2210.01,0.00016673,2]
[393566682,1762804779282,-10000.01,0.00016673,2]
[393566683,1762804779362,-966.37906348,0.00016673,2]
[393566684,1762804779396,-8067.25187304,0.00016673,2]
[393566685,1762804779574,-2635.38410171,0.00016673,2]
[393566686,1762804779603,-174.6181677,0.00016673,2]
[393566687,1762804779633,-634.087439,0.00016673,2]
[393566688,1762804779660,-300.0,0.00016692,2]
[393566689,1762804779689,-410.90810982,0.00016692,2]
[393566690,1762804779718,-490.01436354,0.00016754,2]
[393566691,1762804779807,-709.98563646,0.00016754,2]
[393566692,1762804779848,-300.0,0.00016755,2]
[393566693,1762804779878,-550.0,0.00016755,2]
[393566694,1762804779908,-158.96002129,0.00016755,2]
[393566695,1762804779937,-268.46635575,0.00016755,2]
[393566696,1762804779966,-500.0,0.00016755,2]
[393566697,1762804780000,-500.0,0.00016755,2]
[393566698,1762804780030,-500.0,0.00016755,2]
[393566699,1762804780059,-500.0,0.00016755,2]
[393566700,1762804780091,-500.0,0.00016755,2]
[393566701,1762804780119,-500.0,0.00016755,2]
[393566702,1762804780147,-500.0,0.00016755,2]
[393566703,1762804780308,-445.15724592,0.00016755,2]
[393566704,1762804785577,-54.84275408,0.00016755,2]
[393566705,1762804785618,-500.0,0.00016755,2]
[393566706,1762804785657,-421.26841026,0.00016755,2]
[393566707,1762804785696,-500.0,0.00016755,2]
[393566708,1762804785733,-610.37424641,0.00016755,2]
[393566709,1762804785768,-600.01,0.00016755,2]
[393566710,1762804785809,-500.0,0.00016755,2]
[393566711,1762804785851,-1155.0,0.00016756,2]
[393566712,1762804785890,-270.24405848,0.00016756,2]
[393566713,1762804785928,-328.12944518,0.00016756,2]
[393566714,1762804785997,-500.0,0.00016756,2]
[393566715,1762804786037,-570.00324642,0.00016756,2]
[393566716,1762804788067,2933.5715,0.00016657,2]
[393566717,1762804789375,859.02065317,0.00016073,2]
[393566728,1762805394175,-5921.53301886,0.00039624,30]
[393566729,1762805394205,-178.35082854,0.00039624,30]
[393566730,1762805394230,-406.0582782,0.00039624,30]
[393566731,1762805394254,-159.58834746,0.00039624,30]
[393566732,1762805394280,-559549.79935725,0.00039624,30]
[393566733,1762805394306,-1107.08127482,0.00039624,45]
[393566734,1762805394330,-203056.43160173,0.00039624,30]
[393566735,1762805394354,-292.41125942,0.00039624,30]
[393566736,1762805394379,-452.32362992,0.00039624,30]
[393566737,1762805394404,-3347.81001858,0.00039624,30]
[393566738,1762805394428,-117766.0,0.00039624,30]
[393566739,1762805394451,-272.56025398,0.00039624,30]
[393566740,1762805394475,-5050.0,0.00039624,37]
[393566741,1762805394497,-10000.0,0.00039624,30]
[393566742,1762805394521,-16413.33902097,0.00039624,30]
[393566743,1762805394544,-6631.85184873,0.00039624,30]
[393566744,1762805394568,-10296.24,0.00039624,30]
[393566745,1762805394595,-1838861.12251765,0.00039624,30]
[393566746,1762805394618,-207.85840152,0.00039624,30]
[393566747,1762805394643,-12729.0,0.00039624,30]
[393566748,1762805394666,-289.25188512,0.00039624,30]
[393566749,1762805394691,-152.80959514,0.00039624,30]
[393566750,1762805394714,-153.36394501,0.00039624,30]
[393566751,1762805394739,-1614.56820531,0.00039624,30]
[393566752,1762805394765,-510.25526748,0.00039624,30]
[393566753,1762805394788,-150.01,0.00039624,30]
[393566754,1762805394812,-150.02,0.00039624,30]
[393566755,1762805394835,-223.43936739,0.00039624,30]
[393566756,1762805394858,-200.0,0.00039624,30]
[393566757,1762805394882,-200.0,0.00039624,30]
[393566758,1762805394906,-158.84310298,0.00039624,30]
[393566759,1762805394931,-500.0,0.00039624,30]
[393566760,1762805394953,-500.0,0.00039624,30]
[393566761,1762805394977,-500.0,0.00039624,30]
[393566762,1762805395000,-500.0,0.00039624,30]
[393566763,1762805395023,-500.0,0.00039624,30]
[393566764,1762805395049,-500.0,0.00039624,30]
[393566765,1762805395073,-500.0,0.00039624,30]
[393566766,1762805395098,-500.0,0.00039624,30]
[393566767,1762805395124,-500.0,0.00039624,30]
[393566768,1762805395148,-500.0,0.00039624,30]
[393566769,1762805395171,-500.0,0.00039624,30]
[393566770,1762805395410,-500.0,0.00039624,30]
[393566771,1762805395435,-500.0,0.00039624,30]
[393566772,1762805395460,-500.0,0.00039624,30]
[393566773,1762805395483,-500.0,0.00039624,30]
[393566774,1762805395507,-500.0,0.00039624,30]
[393566775,1762805395531,-500.0,0.00039624,30]
[393566776,1762805395555,-500.0,0.00039624,30]
[393566777,1762805395580,-500.0,0.00039624,30]
[393566778,1762805395604,-500.0,0.00039624,30]
[393566779,1762805395627,-500.0,0.00039624,30]
[393566780,1762805395651,-384.03866901,0.00039624,30]
[393566781,1762805395675,-602.96,0.00039624,30]
[393566782,1762805395700,-602.96,0.00039624,30]
[393566783,1762805395725,-602.96,0.00039624,30]
[393566784,1762805395750,-602.96,0.00039624,30]
[393566785,1762805395774,-602.96,0.00039624,30]
[393566786,1762805395800,-602.96,0.00039624,30]
[393566787,1762805395827,-602.96,0.00039624,30]
[393566788,1762805395852,-602.96,0.00039624,30]
[393566789,1762805395879,-602.96,0.00039624,30]
[393566790,1762805395903,-602.96,0.00039624,30]
[393566791,1762805395928,-602.96,0.00039624,30]
[393566792,1762805395952,-602.96,0.00039624,30]
[393566793,1762805395977,-602.96,0.00039624,30]
[393566794,1762805396001,-602.96,0.00039624,30]
[393566795,1762805396026,-602.96,0.00039624,30]
[393566796,1762805396052,-602.96,0.00039624,30]
[393566797,1762805396077,-602.96,0.00039624,30]
[393566798,1762805396103,-602.96,0.00039624,30]
[393566799,1762805396132,-602.96,0.00039624,30]
[393566800,1762805396158,-602.96,0.00039624,30]
[393566801,1762805396184,-602.96,0.00039624,30]
[393566802,1762805396208,-602.96,0.00039624,30]
[393566803,1762805396234,-500.0,0.00039624,30]
[393566804,1762805396259,-602.96,0.00039624,30]
[393566805,1762805396285,-603.18297318,0.00039624,30]
[393566806,1762805396311,-500.0,0.00039624,30]
[393566807,1762805396337,-500.0,0.00039624,30]
[393566808,1762805396362,-500.0,0.00039624,30]
[393566809,1762805396387,-500.0,0.00039624,30]
[393566810,1762805396412,-500.0,0.00039624,30]
[393566811,1762805396437,-500.0,0.00039624,30]
[393566812,1762805396462,-500.0,0.00039624,30]
[393566813,1762805396487,-500.0,0.00039624,30]
[393566814,1762805396512,-500.0,0.00039624,30]
[393566815,1762805396537,-500.0,0.00039624,30]
[393566816,1762805396562,-500.0,0.00039624,30]
[393566817,1762805396587,-500.0,0.00039624,30]
[393566818,1762805396612,-500.0,0.00039624,30]
[393566819,1762805396637,-500.0,0.00039624,30]
[393566820,1762805396663,-500.0,0.00039624,30]
[393566821,1762805396689,-500.0,0.00039624,30]
[393566822,1762805396714,-500.0,0.00039624,30]
[393566823,1762805396739,-500.0,0.00039624,30]
[393566824,1762805396764,-500.0,0.00039624,30]
[393566825,1762805396787,-500.0,0.00039624,30]
[393566826,1762805396810,-447.87281167,0.00039624,30]
[393566827,1762805396833,-500.0,0.00039624,30]
[393566828,1762805396857,-500.0,0.00039624,30]
[393566829,1762805396881,-500.0,0.00039624,30]
[393566830,1762805396905,-500.0,0.00039624,30]
[393566831,1762805396931,-500.0,0.00039624,30]
[393566832,1762805396955,-500.0,0.00039624,30]
[393566833,1762805396979,-500.0,0.00039624,30]
[393566834,1762805397003,-500.0,0.00039624,30]
[393566835,1762805397027,-377.75012442,0.00039624,30]
[393566836,1762805397056,-500.0,0.00039624,30]
[393566837,1762805397081,-500.0,0.00039624,30]
[393566838,1762805397106,-500.0,0.00039624,30]
[393566839,1762805397130,-500.0,0.00039624,30]
[393566840,1762805397153,-500.0,0.00039624,30]
[393566841,1762805397177,-500.0,0.00039624,30]
[393566842,1762805397201,-500.0,0.00039624,30]
[393566843,1762805397229,-500.0,0.00039624,30]
[393566844,1762805397253,-500.0,0.00039624,30]
[393566845,1762805397280,-500.0,0.00039624,30]
[393566846,1762805397304,-278.66212434,0.00039624,30]
[393566847,1762805397332,-6709.2,0.00039624,30]
[393566848,1762805397358,-6709.2,0.00039624,30]
[393566849,1762805397382,-6709.2,0.00039624,30]
[393566850,1762805397407,-6709.2,0.00039624,30]
[393566851,1762805397432,-6709.2,0.00039624,30]
[393566852,1762805397456,-6709.2,0.00039624,30]
[393566853,1762805397479,-6709.2,0.00039624,30]
[393566854,1762805397504,-6709.2,0.00039624,30]
[393566855,1762805397529,-6709.2,0.00039624,30]
[393566856,1762805397552,-6709.2,0.00039624,30]
[393566857,1762805397575,-6709.2,0.00039624,30]
[393566858,1762805397599,-6709.2,0.00039624,30]
[393566859,1762805397623,-6709.2,0.00039624,30]
[393566860,1762805397647,-6709.2,0.00039624,30]
[393566861,1762805397671,-6709.2,0.00039624,30]
[393566862,1762805397695,-6709.2,0.00039624,30]
[393566863,1762805397718,-6709.2,0.00039624,30]
[393566864,1762805397741,-6709.2,0.00039624,30]
[393566865,1762805397765,-6709.2,0.00039624,30]
[393566866,1762805397790,-6709.2,0.00039624,30]
[393566867,1762805397814,-6709.2,0.00039624,30]
[393566868,1762805397838,-6709.2,0.00039624,30]
[393566869,1762805397862,-6709.2,0.00039624,30]
[393566870,1762805397888,-6709.37404339,0.00039624,30]
[393566871,1762805397914,-1996517.51822793,0.00039624,30]
[393566872,1762805399087,716.31,0.00013699,2]
[393566873,1762805401959,-5000000.0,0.00039624,30]
[393566875,1762805405888,-5000000.0,0.00039624,30]
[393566876,1762805408962,-1282429.70862592,0.00039624,30]
[393566877,1762805408998,-3633424.02434871,0.00039624,30]
[393566878,1762805409032,-5498.30770931,0.00039624,30]
[393566879,1762805409069,-78647.95931606,0.00039624,30]
[393566880,1762805411797,-23246.4220798,0.00039624,30]
[393566881,1762805411823,-28248.95032989,0.00039624,30]
[393566882,1762805411848,-42388.28880583,0.00039624,30]
[393566883,1762805411889,-41050.82565425,0.00039624,30]
[393566884,1762805411917,-1032016.52385697,0.00039624,30]
[393566885,1762805411946,-17499.999999,0.00039624,30]
[393566886,1762805411974,-298578.61243665,0.00039624,30]
[393566887,1762805412000,-195581.15540255,0.00039624,30]
[393566888,1762805412027,-3321389.22143506,0.00039624,30]
[393566889,1762805414655,-3420777.23330214,0.00039624,30]
[393566890,1762805414683,-104942.31276307,0.00039624,30]
[393566891,1762805414711,-206785.35853674,0.00039624,30]
[393566892,1762805414736,-5202.54318785,0.00039624,30]
[393566893,1762805414762,-7945.376255,0.00039624,30]
[393566894,1762805414791,-3881.87952214,0.00039624,30]
[393566895,1762805414817,-23034.59862485,0.00039624,30]
[393566896,1762805414843,-389168.44938937,0.00039624,30]
[393566897,1762805414869,-31890.0,0.00039624,30]
[393566898,1762805414897,-50000.0,0.00039624,30]
[393566899,1762805414923,-500.0,0.00039624,30]
[393566900,1762805414949,-622.21,0.00039624,30]
[393566901,1762805414977,-450.62,0.00039624,30]
[393566902,1762805415004,-205.45,0.00039624,30]
[393566903,1762805415035,-600.0,0.00039624,120]
[393566904,1762805415063,-240.93307746,0.00039624,120]
[393566905,1762805415089,-7523.45353977,0.00039624,30]
[393566906,1762805415114,-440.33307744,0.00039624,120]
[393566907,1762805415143,-186.33281629,0.00039624,120]
[393566908,1762805415169,-152.66731684,0.00039624,120]
[393566909,1762805415195,-251.07626132,0.00039624,80]
[393566910,1762805415221,-9021.88784174,0.00039624,60]
[393566911,1762805415246,-20220.15309163,0.00039624,60]
[393566912,1762805415271,-1875.62278445,0.00039624,120]
[393566913,1762805415296,-193.98093492,0.00039624,120]
[393566914,1762805415325,-319.03469035,0.00039624,60]
[393566915,1762805415353,-207.72558511,0.00039624,120]
[393566916,1762805415381,-500.0,0.00039624,120]
[393566917,1762805415407,-500.0,0.00039624,120]
[393566918,1762805415432,-500.0,0.00039624,120]
[393566919,1762805415459,-208.24,0.00039624,120]
[393566920,1762805415484,-500.0,0.00039624,120]
[393566921,1762805415509,-283.72,0.00039624,120]
[393566922,1762805415535,-500.0,0.00039624,120]
[393566923,1762805415561,-500.0,0.00039624,120]
[393566924,1762805415587,-500.0,0.00039624,120]
[393566925,1762805415613,-500.0,0.00039624,120]
[393566926,1762805415638,-337.8408056,0.00039624,60]
[393566927,1762805415664,-308.84,0.00039624,120]
[393566928,1762805415689,-500.0,0.00039624,120]
[393566929,1762805415716,-299.97,0.00039624,120]
[393566930,1762805415744,-500.0,0.00039624,120]
[393566931,1762805415771,-252.12454405,0.00039624,120]
[393566932,1762805415797,-224.55176256,0.00039624,120]
[393566933,1762805415823,-500.0,0.00039624,120]
[393566934,1762805415853,-500.0,0.00039624,120]
[393566935,1762805415879,-564.67,0.00039624,120]
[393566936,1762805415904,-500.0,0.00039624,120]
[393566937,1762805415930,-233.27,0.00039624,120]
[393566938,1762805415955,-536.96642196,0.00039624,120]
[393566939,1762805415980,-531.66794343,0.00039624,120]
[393566940,1762805416006,-588.86,0.00039624,120]
[393566941,1762805416032,-506.45351513,0.00039624,120]
[393566942,1762805416059,-507.10588785,0.00039624,120]
[393566943,1762805416085,-500.0,0.00039624,120]
[393566944,1762805416112,-612.01744251,0.00039624,120]
[393566945,1762805416139,-500.0,0.00039624,120]
[393566946,1762805416165,-500.0,0.00039624,120]
[393566947,1762805416191,-500.0,0.00039624,120]
[393566948,1762805416217,-500.0,0.00039624,120]
[393566949,1762805416243,-500.0,0.00039624,120]
[393566950,1762805416267,-500.0,0.00039624,120]
[393566951,1762805416292,-500.0,0.00039624,120]
[393566952,1762805416317,-500.0,0.00039624,120]
[393566953,1762805416342,-500.0,0.00039624,120]
[393566954,1762805416369,-500.0,0.00039624,120]
[393566955,1762805416393,-500.0,0.00039624,120]
[393566956,1762805416418,-523.2691755,0.00039624,120]
[393566957,1762805416443,-500.0,0.00039624,120]
[393566958,1762805416468,-500.0,0.00039624,120]
[393566959,1762805416495,-500.0,0.00039624,120]
[393566960,1762805416523,-504.39334715,0.00039624,120]
[393566961,1762805416549,-415.27360173,0.00039624,120]
[393566962,1762805416780,-500.0,0.00039624,120]
[393566963,1762805416807,-542.1755997,0.00039624,120]
[393566964,1762805416833,-500.0,0.00039624,120]
[393566965,1762805416859,-500.0,0.00039624,120]
[393566966,1762805416886,-500.0,0.00039624,120]
[393566967,1762805416912,-613.3745655,0.00039624,120]
[393566968,1762805416938,-500.0,0.00039624,120]
[393566969,1762805416963,-549.02493434,0.00039624,120]
[393566970,1762805416988,-500.0,0.00039624,120]
[393566971,1762805417014,-500.0,0.00039624,120]
[393566972,1762805417039,-500.0,0.00039624,120]
[393566973,1762805417067,-500.0,0.00039624,120]
[393566974,1762805417095,-500.0,0.00039624,120]
[393566975,1762805417121,-500.0,0.00039624,120]
[393566976,1762805417147,-582.24,0.00039624,120]
[393566977,1762805417174,-500.0,0.00039624,120]
[393566978,1762805417199,-500.0,0.00039624,120]
[393566979,1762805417225,-500.0,0.00039624,120]
[393566980,1762805417253,-500.0,0.00039624,120]
[393566981,1762805417279,-500.0,0.00039624,120]
[393566982,1762805417304,-500.0,0.00039624,120]
[393566983,1762805417333,-500.0,0.00039624,120]
[393566984,1762805417359,-500.0,0.00039624,120]
[393566985,1762805417383,-500.0,0.00039624,120]
[393566986,1762805417408,-500.0,0.00039624,120]
[393566987,1762805417432,-182.30122481,0.00039624,120]
[393566988,1762805417458,-500.0,0.00039624,120]
[393566989,1762805417483,-500.0,0.00039624,120]
[393566990,1762805417507,-500.0,0.00039624,120]
[393566991,1762805417531,-500.0,0.00039624,120]
[393566992,1762805417555,-500.0,0.00039624,120]
[393566993,1762805417579,-500.0,0.00039624,120]
[393566994,1762805417603,-500.0,0.00039624,120]
[393566995,1762805417627,-500.0,0.00039624,120]
[393566996,1762805417652,-228.86316836,0.00039624,120]
[393566997,1762805417677,-500.0,0.00039624,120]
[393566998,1762805417701,-500.0,0.00039624,120]
[393566999,1762805417726,-500.0,0.00039624,120]
[393567000,1762805417752,-500.0,0.00039624,120]
[393567001,1762805417777,-159.05330415,0.00039624,120]
[393567002,1762805417802,-500.0,0.00039624,120]
[393567003,1762805417828,-510.785209,0.00039624,120]
[393567004,1762805417855,-500.0,0.00039624,120]
[393567005,1762805417883,-500.0,0.00039624,120]
[393567006,1762805417908,-500.0,0.00039624,120]
[393567007,1762805417932,-500.0,0.00039624,120]
[393567008,1762805417957,-500.0,0.00039624,120]
[393567009,1762805417982,-500.0,0.00039624,120]
[393567010,1762805418006,-283.79502096,0.00039624,120]
[393567011,1762805418031,-500.0,0.00039624,120]
[393567012,1762805418057,-500.0,0.00039624,120]
[393567013,1762805418082,-500.0,0.00039624,120]
[393567014,1762805418107,-209.20020703,0.00039624,120]
[393567015,1762805418131,-742.38,0.00039624,120]
[393567016,1762805418155,-742.38,0.00039624,120]
[393567017,1762805418178,-500.0,0.00039624,120]
[393567018,1762805418203,-742.38,0.00039624,120]
[393567019,1762805418229,-534.00730527,0.00039624,120]
[393567020,1762805418254,-500.0,0.00039624,120]
[393567021,1762805418280,-742.38,0.00039624,120]
[393567022,1762805418306,-500.0,0.00039624,120]
[393567023,1762805418331,-742.38,0.00039624,120]
[393567024,1762805418356,-500.0,0.00039624,120]
[393567025,1762805418382,-742.38,0.00039624,120]
[393567026,1762805418407,-500.0,0.00039624,120]
[393567027,1762805418432,-742.38,0.00039624,120]
[393567028,1762805418458,-500.0,0.00039624,120]
[393567029,1762805418482,-742.38,0.00039624,120]
[393567030,1762805418507,-742.38,0.00039624,120]
[393567031,1762805418532,-500.0,0.00039624,120]
[393567032,1762805418557,-742.38,0.00039624,120]
[393567033,1762805418583,-150.12263044,0.00039624,120]
[393567034,1762805418607,-742.38,0.00039624,120]
[393567035,1762805418631,-742.38,0.00039624,120]
[393567036,1762805418655,-742.38,0.00039624,120]
[393567037,1762805418680,-742.38,0.00039624,120]
[393567038,1762805418706,-742.38,0.00039624,120]
[393567039,1762805418731,-742.38,0.00039624,120]
[393567040,1762805418756,-742.38,0.00039624,120]
[393567041,1762805418781,-742.38,0.00039624,120]
[393567042,1762805418806,-500.0,0.00039624,120]
[393567043,1762805418831,-742.38,0.00039624,120]
[393567044,1762805418856,-500.0,0.00039624,120]
[393567045,1762805418882,-742.38,0.00039624,120]
[393567046,1762805418907,-500.0,0.00039624,120]
[393567047,1762805418932,-742.38,0.00039624,120]
[393567048,1762805418959,-415.0459662,0.00039624,120]
[393567049,1762805418983,-742.38,0.00039624,120]
[393567050,1762805419007,-742.38,0.00039624,120]
[393567051,1762805419032,-742.49738873,0.00039624,120]
[393567052,1762805419061,-500.0,0.00039624,120]
[393567053,1762805419086,-500.0,0.00039624,120]
[393567054,1762805419112,-542.23716928,0.00039624,120]
[393567055,1762805419140,-500.0,0.00039624,120]
[393567056,1762805419166,-500.0,0.00039624,120]
[393567057,1762805419191,-500.0,0.00039624,120]
[393567058,1762805419216,-500.0,0.00039624,120]
[393567059,1762805419242,-500.0,0.00039624,120]
[393567060,1762805419268,-500.0,0.00039624,120]
[393567061,1762805419294,-604.68004546,0.00039624,120]
[393567062,1762805419320,-500.0,0.00039624,120]
[393567063,1762805419345,-574.39892343,0.00039624,120]
[393567064,1762805419370,-500.0,0.00039624,120]
[393567065,1762805419396,-500.0,0.00039624,120]
[393567066,1762805419569,-500.0,0.00039624,120]
[393567067,1762805419595,-234.34377553,0.00039624,120]
[393567068,1762805419620,-500.0,0.00039624,120]
[393567069,1762805419645,-500.0,0.00039624,120]
[393567070,1762805419670,-500.0,0.00039624,120]
[393567071,1762805419695,-500.0,0.00039624,120]
[393567072,1762805419719,-500.0,0.00039624,120]
[393567073,1762805419743,-526.06706655,0.00039624,120]
[393567074,1762805419768,-500.0,0.00039624,120]
[393567075,1762805419792,-500.0,0.00039624,120]
[393567076,1762805419816,-500.0,0.00039624,120]
[393567077,1762805419841,-500.0,0.00039624,120]
[393567078,1762805419867,-500.0,0.00039624,120]
[393567079,1762805419893,-500.0,0.00039624,120]
[393567080,1762805419918,-523.60961029,0.00039624,120]
[393567081,1762805419944,-500.0,0.00039624,120]
[393567082,1762805419970,-500.0,0.00039624,120]
[393567083,1762805419996,-439.22981736,0.00039624,120]
[393567084,1762805420022,-500.0,0.00039624,120]
[393567085,1762805420051,-500.0,0.00039624,120]
[393567086,1762805420078,-500.0,0.00039624,120]
[393567087,1762805420108,-500.0,0.00039624,120]
[393567088,1762805420134,-566.90775963,0.00039624,120]
[393567089,1762805420159,-500.0,0.00039624,120]
[393567090,1762805420184,-500.0,0.00039624,120]
[393567091,1762805420210,-538.61125311,0.00039624,120]
[393567092,1762805420236,-520.81210657,0.00039624,120]
[393567093,1762805420261,-536.60579659,0.00039624,120]
[393567094,1762805420288,-500.0,0.00039624,120]
[393567095,1762805420313,-500.0,0.00039624,120]
[393567096,1762805420338,-530.32339582,0.00039624,120]
[393567097,1762805420365,-500.0,0.00039624,120]
[393567098,1762805420391,-544.60268999,0.00039624,120]
[393567099,1762805420416,-355.0,0.00039624,120]
[393567100,1762805420444,-500.0,0.00039624,120]
[393567101,1762805420469,-165.84735494,0.00039624,120]
[393567102,1762805420495,-542.94335961,0.00039624,120]
[393567103,1762805420520,-500.0,0.00039624,120]
[393567104,1762805420544,-264.61279781,0.00039624,120]
[393567105,1762805420569,-500.0,0.00039624,120]
[393567106,1762805420595,-500.0,0.00039624,120]
[393567107,1762805420620,-500.0,0.00039624,120]
[393567108,1762805420645,-500.0,0.00039624,120]
[393567109,1762805420671,-187.1573773,0.00039624,120]
[393567110,1762805420696,-500.0,0.00039624,120]
[393567111,1762805420721,-500.0,0.00039624,120]
[393567112,1762805420748,-500.0,0.00039624,120]
[393567113,1762805420772,-500.0,0.00039624,120]
[393567114,1762805420798,-500.0,0.00039624,120]
[393567115,1762805420824,-500.0,0.00039624,120]
[393567116,1762805420850,-500.0,0.00039624,120]
[393567117,1762805420878,-205.0,0.00039624,120]
[393567118,1762805420904,-500.0,0.00039624,120]
[393567119,1762805420929,-541.54743996,0.00039624,120]
[393567120,1762805420955,-500.0,0.00039624,120]
[393567121,1762805420981,-500.0,0.00039624,120]
[393567122,1762805421007,-500.0,0.00039624,120]
[393567123,1762805421032,-500.0,0.00039624,120]
[393567124,1762805421061,-343.60728405,0.00039624,120]
[393567125,1762805421088,-500.0,0.00039624,120]
[393567126,1762805421115,-482.02,0.00039624,120]
[393567127,1762805421144,-500.0,0.00039624,120]
[393567128,1762805421170,-616.97475743,0.00039624,120]
[393567129,1762805421196,-500.0,0.00039624,120]
[393567130,1762805421222,-500.0,0.00039624,120]
[393567131,1762805421248,-500.0,0.00039624,120]
[393567132,1762805421274,-500.0,0.00039624,120]
[393567133,1762805421301,-486.60052335,0.00039624,120]
[393567134,1762805421328,-500.0,0.00039624,120]
[393567135,1762805421353,-500.0,0.00039624,120]
[393567136,1762805421379,-500.0,0.00039624,120]
[393567137,1762805421404,-500.0,0.00039624,120]
[393567138,1762805421429,-500.0,0.00039624,120]
[393567139,1762805421457,-500.0,0.00039624,120]
[393567140,1762805421482,-271.73787547,0.00039624,120]
[393567141,1762805421508,-891.75,0.00039624,120]
[393567142,1762805421535,-891.75,0.00039624,120]
[393567143,1762805421561,-891.75,0.00039624,120]
[393567144,1762805421587,-891.75,0.00039624,120]
[393567145,1762805421612,-500.0,0.00039624,120]
[393567146,1762805421637,-891.75,0.00039624,120]
[393567147,1762805421664,-500.0,0.00039624,120]
[393567148,1762805421691,-891.75,0.00039624,120]
[393567149,1762805421718,-500.0,0.00039624,120]
[393567150,1762805421745,-552.14615272,0.00039624,120]
[393567151,1762805421771,-891.75,0.00039624,120]
[393567152,1762805421797,-500.0,0.00039624,120]
[393567153,1762805421823,-587.31523383,0.00039624,120]
[393567154,1762805421850,-891.75,0.00039624,120]
[393567155,1762805421876,-500.0,0.00039624,120]
[393567156,1762805421901,-891.75,0.00039624,120]
[393567157,1762805421927,-500.0,0.00039624,120]
[393567158,1762805421953,-891.75,0.00039624,120]
[393567159,1762805421979,-500.0,0.00039624,120]
[393567160,1762805422004,-891.75,0.00039624,120]
[393567161,1762805422029,-500.0,0.00039624,120]
[393567162,1762805422056,-891.75,0.00039624,120]
[393567163,1762805422082,-500.0,0.00039624,120]
[393567164,1762805422108,-891.75,0.00039624,120]
[393567165,1762805422134,-494.36837388,0.00039624,120]
[393567166,1762805422159,-500.0,0.00039624,120]
[393567167,1762805422185,-891.75,0.00039624,120]
[393567168,1762805422210,-500.0,0.00039624,120]
[393567169,1762805422236,-891.75,0.00039624,120]
[393567170,1762805422406,-500.0,0.00039624,120]
[393567171,1762805422433,-891.75,0.00039624,120]
[393567172,1762805422460,-500.0,0.00039624,120]
[393567173,1762805422487,-500.0,0.00039624,120]
[393567174,1762805422513,-500.0,0.00039624,120]
[393567175,1762805422538,-891.75,0.00039624,120]
[393567176,1762805422563,-500.0,0.00039624,120]
[393567177,1762805422589,-891.75,0.00039624,120]
[393567178,1762805422615,-500.0,0.00039624,120]
[393567179,1762805422641,-891.75,0.00039624,120]
[393567180,1762805422667,-500.0,0.00039624,120]
[393567181,1762805422693,-891.75,0.00039624,120]
[393567182,1762805422719,-500.0,0.00039624,120]
[393567183,1762805422744,-891.75,0.00039624,120]
[393567184,1762805422769,-500.0,0.00039624,120]
[393567185,1762805422794,-891.75,0.00039624,120]
[393567186,1762805422820,-891.75,0.00039624,120]